[Event "1st Rapid Chess Tournament Château Montaiguillon"]
[Site "Montagne - Saint Emilion, France"]
[Date "2019.09.08"]
[Round "1.3"]
[White "Lagarde, Maxime"]
[Black "Villeneuve, Robin"]
[Result "1-0"]
[TimeControl "12' + 3''"]
[WhiteElo "2599"]
[BlackElo "1530"]

1. d4 {[%clk 00:12:05]} {[%emt 09:07:06]} d5 {[%clk 00:12:04]} {[%emt
00:00:02]} 2. Bf4 {[%clk 00:12:07]} {[%emt 00:00:02]} Nf6 {[%clk 00:12:01]}
{[%emt 00:00:07]} 3. e3 {[%clk 00:12:08]} {[%emt 00:00:02]} Bf5 {[%clk
00:12:00]} {[%emt 00:00:04]} 4. Nf3 {[%clk 00:12:09]} {[%emt 00:00:02]} e6
{[%clk 00:11:57]} {[%emt 00:00:06]} 5. Nc3 {[%clk 00:11:59]} {[%emt 00:00:13]}
c6 {[%clk 00:11:46]} {[%emt 00:00:14]} 6. Bd3 {[%clk 00:11:59]} {[%emt
00:00:03]} Bxd3 {[%clk 00:11:25]} {[%emt 00:00:24]} 7. cxd3 {[%clk 00:11:59]}
{[%emt 00:00:03]} Bd6 {[%clk 00:10:37]} {[%emt 00:00:51]} 8. Ne5 {[%clk
00:11:59]} {[%emt 00:00:02]} Qe7 {[%clk 00:09:51]} {[%emt 00:00:50]} 9. Qf3
{[%clk 00:11:55]} {[%emt 00:00:07]} Nbd7 {[%clk 00:09:33]} {[%emt 00:00:21]} 10.
g4 {[%clk 00:11:48]} {[%emt 00:00:10]} h6 {[%clk 00:09:12]} {[%emt 00:00:25]}
11. h4 {[%clk 00:11:41]} {[%emt 00:00:10]} Nh7 {[%clk 00:08:13]} {[%emt
00:01:02]} 12. g5 {[%clk 00:11:10]} {[%emt 00:00:33]} hxg5 {[%clk 00:08:13]}
{[%emt 00:00:03]} 13. hxg5 {[%clk 00:11:02]} {[%emt 00:00:16]} O-O-O {[%clk
00:07:45]} 1-0

[Event "1st Rapid Chess Tournament Château Montaiguillon"]
[Site "Montagne - Saint Emilion, France"]
[Date "2019.09.08"]
[Round "1.5"]
[White "Sochacki, Christophe"]
[Black "Girard, Emmanuel"]
[Result "1-0"]
[TimeControl "12' + 3''"]
[WhiteElo "2481"]
[BlackElo "1399"]

1. d4 {[%clk 00:12:03]} {[%emt 00:00:02]} e6 {[%clk 00:12:04]} {[%emt
00:00:02]} 2. c4 {[%clk 00:12:04]} {[%emt 00:00:02]} d6 {[%clk 00:12:01]}
{[%emt 00:00:06]} 3. Nc3 {[%clk 00:12:05]} {[%emt 00:00:02]} a6 {[%clk
00:12:02]} {[%emt 00:00:02]} 4. e4 {[%clk 00:12:06]} {[%emt 00:00:02]} h6
{[%clk 00:11:59]} {[%emt 00:00:07]} 5. Bd3 {[%clk 00:12:01]} {[%emt 00:00:08]}
Nd7 {[%clk 00:11:52]} {[%emt 00:00:09]} 6. Be3 {[%clk 00:11:59]} {[%emt
00:00:05]} Ne7 {[%clk 00:11:53]} {[%emt 00:00:02]} 7. f4 {[%clk 00:12:00]}
{[%emt 00:00:02]} g6 {[%clk 00:11:50]} {[%emt 00:00:06]} 8. Nge2 {[%clk
00:11:31]} {[%emt 00:00:31]} Bg7 {[%clk 00:11:33]} {[%emt 00:00:20]} 9. O-O
{[%clk 00:11:23]} {[%emt 00:00:11]} b6 {[%clk 00:11:32]} {[%emt 00:00:04]} 10.
Bc2 {[%clk 00:11:03]} {[%emt 00:00:22]} Bb7 {[%clk 00:11:24]} {[%emt 00:00:11]}
11. Qd2 {[%clk 00:11:02]} {[%emt 00:00:05]} Bf6 {[%clk 00:10:54]} {[%emt
00:00:33]} 12. a4 {[%clk 00:10:55]} {[%emt 00:00:10]} g5 {[%clk 00:10:48]}
{[%emt 00:00:09]} 13. fxg5 {[%clk 00:10:54]} {[%emt 00:00:04]} hxg5 {[%clk
00:10:33]} {[%emt 00:00:18]} 14. Bxg5 {[%clk 00:10:52]} {[%emt 00:00:05]} Bxg5
{[%clk 00:10:27]} {[%emt 00:00:09]} 15. Qxg5 {[%clk 00:10:53]} {[%emt
00:00:02]} Rg8 {[%clk 00:10:01]} {[%emt 00:00:29]} 16. Qh5 {[%clk 00:10:52]}
{[%emt 00:00:03]} Ng6 {[%clk 00:09:56]} {[%emt 00:00:08]} 17. Rf2 {[%clk
00:10:19]} {[%emt 00:00:36]} e5 {[%clk 00:09:06]} {[%emt 00:00:54]} 18. Raf1
{[%clk 00:10:18]} {[%emt 00:00:03]} Qh4 {[%clk 00:08:36]} {[%emt 00:00:33]} 19.
Qxh4 {[%clk 00:09:45]} {[%emt 00:00:37]} Nxh4 {[%clk 00:08:35]} {[%emt
00:00:03]} 20. Nd5 {[%clk 00:09:29]} {[%emt 00:00:19]} Kd8 {[%clk 00:06:52]}
{[%emt 00:01:46]} 21. g3 {[%clk 00:09:22]} {[%emt 00:00:09]} c6 {[%clk
00:06:39]} {[%emt 00:00:17]} 22. Nf6 {[%clk 00:09:12]} {[%emt 00:00:12]} Nxf6
{[%clk 00:06:32]} {[%emt 00:00:10]} 23. Rxf6 {[%clk 00:09:12]} {[%emt
00:00:03]} Bc8 {[%clk 00:06:04]} {[%emt 00:00:30]} 24. Rxf7 {[%clk 00:08:44]}
{[%emt 00:00:33]} Bh3 {[%clk 00:05:36]} {[%emt 00:00:31]} 25. Rf8+ {[%clk
00:08:42]} {[%emt 00:00:05]} Rxf8 {[%clk 00:05:27]} {[%emt 00:00:12]} 26. Rxf8+
{[%emt 00:00:08]} Ke8 {[%emt 00:00:02]} 27. Rf6 1-0

[Event "1st Rapid Chess Tournament Château Montaiguillon"]
[Site "Montagne - Saint Emilion, France"]
[Date "2019.09.08"]
[Round "2.3"]
[White "Selebran, Henri"]
[Black "Lagarde, Maxime"]
[Result "0-1"]
[TimeControl "12' + 3''"]
[WhiteElo "2109"]
[BlackElo "2599"]

1. c4 {[%clk 00:12:04]} {[%emt 00:00:02]} Nf6 {[%clk 00:12:05]} {[%emt
00:00:02]} 2. g3 {[%clk 00:12:04]} {[%emt 00:00:02]} g6 {[%clk 00:12:06]}
{[%emt 00:00:02]} 3. Bg2 {[%clk 00:12:05]} {[%emt 00:00:03]} Bg7 {[%clk
00:12:08]} {[%emt 00:00:01]} 4. Nc3 {[%clk 00:12:06]} {[%emt 00:00:02]} O-O
{[%clk 00:12:09]} {[%emt 00:00:04]} 5. d3 {[%clk 00:12:06]} d6 {[%clk
00:12:11]} {[%emt 00:00:02]} 6. Nf3 {[%clk 00:11:57]} {[%emt 00:00:12]} e5
{[%clk 00:12:11]} {[%emt 00:00:03]} 7. O-O {[%clk 00:11:47]} {[%emt 00:00:12]}
c5 {[%clk 00:12:12]} {[%emt 00:00:03]} 8. Nd5 {[%clk 00:11:08]} {[%emt
00:00:41]} Nxd5 {[%clk 00:12:13]} {[%emt 00:00:03]} 9. cxd5 {[%clk 00:11:08]}
{[%emt 00:00:02]} Na6 {[%clk 00:12:10]} {[%emt 00:00:07]} 10. e4 {[%clk
00:09:58]} {[%emt 00:01:12]} h6 {[%clk 00:12:02]} {[%emt 00:00:12]} 11. Ne1
{[%clk 00:06:36]} {[%emt 00:03:23]} f5 {[%clk 00:11:57]} {[%emt 00:00:08]} 12.
f4 {[%clk 00:05:41]} {[%emt 00:00:58]} exf4 {[%clk 00:11:58]} {[%emt 00:00:03]}
13. gxf4 {[%emt 00:00:23]} fxe4 {[%clk 00:11:45]} {[%emt 00:00:07]} 14. dxe4
{[%clk 00:05:17]} {[%emt 00:00:15]} Bd7 {[%clk 00:11:39]} {[%emt 00:00:10]} 15.
Nd3 {[%clk 00:04:51]} {[%emt 00:00:28]} c4 {[%clk 00:11:40]} {[%emt 00:00:03]}
16. Nf2 {[%clk 00:04:33]} {[%emt 00:00:20]} Nc5 {[%clk 00:11:41]} {[%emt
00:00:02]} 17. Qe2 {[%clk 00:03:18]} {[%emt 00:01:18]} b5 {[%clk 00:11:32]}
{[%emt 00:00:13]} 18. Be3 {[%clk 00:02:48]} {[%emt 00:00:32]} Na4 {[%clk
00:11:33]} {[%emt 00:00:03]} 19. Rab1 {[%clk 00:02:19]} {[%emt 00:00:32]} Qh4
{[%clk 00:11:30]} {[%emt 00:00:06]} 20. Nh1 {[%clk 00:01:05]} {[%emt 00:01:16]}
Rac8 {[%clk 00:11:03]} {[%emt 00:00:31]} 21. Ng3 {[%clk 00:00:39]} {[%emt
00:00:28]} Nc5 {[%clk 00:10:46]} {[%emt 00:00:22]} 22. Bxc5 {[%clk 00:00:17]}
{[%emt 00:00:24]} Rxc5 {[%clk 00:10:46]} {[%emt 00:00:04]} 23. Qe3 {[%clk
00:00:15]} {[%emt 00:00:05]} Qe7 {[%clk 00:09:32]} {[%emt 00:01:17]} 24. Rf2
{[%clk 00:00:11]} {[%emt 00:00:07]} Rxd5 {[%clk 00:09:20]} {[%emt 00:00:15]}
0-1

[Event "1st Rapid Chess Tournament Château Montaiguillon"]
[Site "Montagne - Saint Emilion, France"]
[Date "2019.09.08"]
[Round "3.3"]
[White "Lagarde, Maxime"]
[Black "Roselle, Tristan"]
[Result "1-0"]
[TimeControl "12' + 3''"]
[WhiteElo "2599"]
[BlackElo "2144"]

1. b3 {[%clk 00:12:05]} {[%emt 00:18:04]} e5 {[%clk 00:12:04]} {[%emt
00:00:02]} 2. Bb2 {[%clk 00:12:07]} {[%emt 00:00:02]} Nc6 {[%clk 00:12:04]}
{[%emt 00:00:02]} 3. e3 {[%clk 00:12:09]} {[%emt 00:00:01]} g6 {[%clk
00:12:01]} {[%emt 00:00:07]} 4. h4 {[%clk 00:12:10]} {[%emt 00:00:02]} Bg7
{[%clk 00:12:02]} {[%emt 00:00:02]} 5. h5 {[%clk 00:12:11]} {[%emt 00:00:02]}
d6 {[%clk 00:11:55]} {[%emt 00:00:11]} 6. Be2 {[%clk 00:12:00]} {[%emt
00:00:13]} Be6 {[%clk 00:11:00]} {[%emt 00:00:57]} 7. Nf3 {[%clk 00:11:53]}
{[%emt 00:00:10]} Bg4 {[%clk 00:09:33]} {[%emt 00:01:30]} 8. Nd4 {[%clk
00:11:23]} {[%emt 00:00:34]} Bxe2 {[%clk 00:09:17]} {[%emt 00:00:19]} 9. Nxe2
{[%clk 00:11:24]} {[%emt 00:00:02]} Qd7 {[%clk 00:09:05]} {[%emt 00:00:15]} 10.
d4 {[%clk 00:11:12]} {[%emt 00:00:15]} exd4 {[%clk 00:08:43]} {[%emt 00:00:25]}
11. Nxd4 {[%clk 00:11:08]} {[%emt 00:00:07]} Bf6 {[%clk 00:08:16]} {[%emt
00:00:30]} 12. c4 {[%clk 00:10:44]} {[%emt 00:00:28]} Nce7 {[%clk 00:07:40]}
{[%emt 00:00:40]} 13. Nc3 {[%clk 00:10:42]} {[%emt 00:00:04]} O-O-O {[%clk
00:07:19]} {[%emt 00:00:24]} 14. Qd2 {[%clk 00:10:39]} {[%emt 00:00:06]} Qg4
{[%clk 00:06:27]} {[%emt 00:00:55]} 15. f3 {[%clk 00:10:28]} {[%emt 00:00:14]}
Qg3+ {[%clk 00:06:16]} {[%emt 00:00:13]} 16. Qf2 {[%clk 00:10:28]} {[%emt
00:00:03]} Qxf2+ {[%clk 00:06:17]} {[%emt 00:00:03]} 17. Kxf2 {[%clk 00:10:29]}
{[%emt 00:00:02]} Bxd4 {[%clk 00:06:03]} {[%emt 00:00:17]} 18. exd4 {[%clk
00:10:31]} {[%emt 00:00:02]} d5 {[%clk 00:05:50]} {[%emt 00:00:16]} 19. hxg6
{[%clk 00:10:16]} {[%emt 00:00:18]} fxg6 {[%clk 00:05:50]} {[%emt 00:00:02]} 20.
Rae1 {[%clk 00:10:18]} {[%emt 00:00:02]} c6 {[%clk 00:05:36]} {[%emt 00:00:18]}
21. cxd5 {[%clk 00:10:07]} {[%emt 00:00:14]} Nxd5 {[%clk 00:05:18]} {[%emt
00:00:20]} 22. Nxd5 {[%clk 00:10:08]} {[%emt 00:00:02]} cxd5 {[%clk 00:05:20]}
{[%emt 00:00:02]} 23. Ba3 {[%clk 00:09:47]} {[%emt 00:00:24]} Kb8 {[%clk
00:05:09]} {[%emt 00:00:13]} 24. Re6 {[%clk 00:09:41]} {[%emt 00:00:08]} h5
{[%clk 00:04:15]} {[%emt 00:00:57]} 25. Bd6+ {[%clk 00:09:27]} {[%emt
00:00:18]} Ka8 {[%clk 00:04:00]} {[%emt 00:00:18]} 26. Be5 {[%clk 00:09:24]}
{[%emt 00:00:06]} Rh7 {[%clk 00:03:46]} {[%emt 00:00:16]} 27. Rc1 {[%clk
00:09:24]} {[%emt 00:00:03]} a6 {[%clk 00:03:27]} {[%emt 00:00:23]} 28. Rxg6
{[%clk 00:09:01]} {[%emt 00:00:26]} Ne7 {[%clk 00:02:45]} {[%emt 00:00:46]} 29.
Rc7 {[%clk 00:08:53]} {[%emt 00:00:11]} Nxg6 {[%clk 00:02:11]} {[%emt
00:00:36]} 30. Rxh7 {[%clk 00:08:53]} {[%emt 00:00:02]} Rc8 {[%clk 00:02:00]}
{[%emt 00:00:14]} 31. Rxh5 {[%clk 00:08:52]} {[%emt 00:00:04]} Rc2+ {[%clk
00:01:54]} {[%emt 00:00:10]} 32. Kg3 {[%clk 00:08:53]} {[%emt 00:00:01]} Rxa2
{[%clk 00:01:32]} {[%emt 00:00:25]} 33. f4 {[%clk 00:08:55]} {[%emt 00:00:01]}
Rb2 {[%clk 00:01:19]} {[%emt 00:00:17]} 34. f5 {[%clk 00:08:56]} {[%emt
00:00:02]} Rxb3+ {[%clk 00:01:20]} {[%emt 00:00:02]} 35. Kh2 {[%clk 00:08:58]}
Nxe5 {[%clk 00:00:33]} {[%emt 00:00:50]} 36. dxe5 {[%clk 00:08:59]} {[%emt
00:00:02]} Rb1 {[%clk 00:00:32]} {[%emt 00:00:04]} 37. f6 {[%clk 00:08:49]}
{[%emt 00:00:13]} Rf1 {[%clk 00:00:31]} {[%emt 00:00:03]} 38. g4 {[%clk
00:08:25]} {[%emt 00:00:28]} d4 {[%clk 00:00:26]} {[%emt 00:00:08]} 39. Rf5
{[%clk 00:08:21]} {[%emt 00:00:07]} 1-0

[Event "1st Rapid Chess Tournament Château Montaiguillon"]
[Site "Montagne - Saint Emilion, France"]
[Date "2019.09.08"]
[Round "4.3"]
[White "Daulyte-Cornette, Deimante"]
[Black "Lagarde, Maxime"]
[Result "0-1"]
[TimeControl "12' + 3''"]
[WhiteElo "2412"]
[BlackElo "2599"]

1. e4 {[%clk 00:12:03]} {[%emt 00:00:02]} c5 {[%clk 00:12:05]} {[%emt
00:00:01]} 2. Nc3 {[%clk 00:12:04]} {[%emt 00:00:02]} Nc6 {[%clk 00:12:06]}
{[%emt 00:00:03]} 3. Bb5 {[%clk 00:12:02]} {[%emt 00:00:03]} Nd4 {[%clk
00:12:00]} {[%emt 00:00:10]} 4. Nf3 {[%clk 00:12:03]} {[%emt 00:00:02]} a6
{[%clk 00:12:01]} {[%emt 00:00:03]} 5. Bd3 {[%clk 00:12:02]} {[%emt 00:00:03]}
g6 {[%clk 00:12:02]} {[%emt 00:00:02]} 6. Nxd4 {[%clk 00:11:39]} {[%emt
00:00:26]} cxd4 {[%clk 00:12:03]} {[%emt 00:00:01]} 7. Ne2 {[%clk 00:11:40]}
{[%emt 00:00:02]} d5 {[%clk 00:11:58]} {[%emt 00:00:08]} 8. exd5 {[%clk
00:11:12]} {[%emt 00:00:32]} Qxd5 {[%clk 00:11:56]} {[%emt 00:00:07]} 9. O-O
{[%clk 00:11:11]} {[%emt 00:00:02]} Bg7 {[%clk 00:11:28]} {[%emt 00:00:30]} 10.
c4 {[%clk 00:11:08]} {[%emt 00:00:06]} Qd6 {[%clk 00:11:12]} {[%emt 00:00:20]}
11. f4 {[%clk 00:10:31]} {[%emt 00:00:40]} f5 {[%clk 00:10:32]} {[%emt
00:00:43]} 12. Rb1 {[%clk 00:10:21]} {[%emt 00:00:13]} e5 {[%clk 00:10:22]}
{[%emt 00:00:13]} 13. fxe5 {[%clk 00:09:10]} {[%emt 00:01:14]} Bxe5 {[%clk
00:10:23]} {[%emt 00:00:02]} 14. g3 {[%clk 00:09:12]} {[%emt 00:00:01]} h5
{[%clk 00:09:57]} {[%emt 00:00:29]} 15. Nf4 {[%clk 00:09:00]} {[%emt 00:00:15]}
Ne7 {[%clk 00:08:47]} {[%emt 00:01:13]} 16. Qe2 {[%clk 00:08:23]} {[%emt
00:00:41]} h4 {[%clk 00:08:38]} {[%emt 00:00:12]} 17. Re1 {[%clk 00:07:59]}
{[%emt 00:00:26]} Nc6 {[%clk 00:07:33]} {[%emt 00:01:08]} 18. b4 {[%clk
00:07:35]} {[%emt 00:00:28]} hxg3 {[%clk 00:07:33]} {[%emt 00:00:03]} 19. hxg3
{[%clk 00:07:08]} {[%emt 00:00:29]} Kd8 {[%clk 00:07:03]} {[%emt 00:00:33]} 20.
b5 {[%clk 00:06:34]} {[%emt 00:00:37]} Bxf4 {[%clk 00:06:43]} {[%emt 00:00:22]}
21. gxf4 {[%clk 00:06:02]} {[%emt 00:00:36]} axb5 {[%clk 00:06:07]} {[%emt
00:00:39]} 22. cxb5 {[%clk 00:05:18]} {[%emt 00:00:47]} Qxf4 {[%clk 00:05:59]}
{[%emt 00:00:11]} 23. bxc6 {[%clk 00:05:14]} {[%emt 00:00:08]} Qg3+ {[%clk
00:05:58]} {[%emt 00:00:04]} 24. Qg2 {[%clk 00:05:16]} {[%emt 00:00:01]} Qxe1+
{[%clk 00:05:59]} {[%emt 00:00:02]} 25. Bf1 {[%clk 00:05:18]} bxc6 {[%clk
00:05:10]} {[%emt 00:00:52]} 26. d3 {[%clk 00:02:38]} {[%emt 00:02:43]} Qe6
{[%clk 00:04:19]} {[%emt 00:00:53]} 27. Bg5+ {[%clk 00:02:35]} {[%emt
00:00:07]} Kd7 {[%clk 00:04:21]} {[%emt 00:00:02]} 28. Rb2 {[%clk 00:02:24]}
{[%emt 00:00:13]} Qd5 {[%clk 00:04:12]} {[%emt 00:00:12]} 29. Qg3 {[%clk
00:00:47]} {[%emt 00:01:41]} Qh1+ {[%clk 00:04:11]} {[%emt 00:00:04]} 30. Kf2
{[%clk 00:00:49]} Rh2+ {[%clk 00:04:12]} {[%emt 00:00:01]} 31. Bg2 {[%clk
00:00:51]} Qxg2+ {[%clk 00:04:13]} {[%emt 00:00:03]} 32. Qxg2 {[%clk 00:00:53]}
{[%emt 00:00:01]} Rxg2+ {[%clk 00:04:15]} {[%emt 00:00:01]} 33. Kxg2 {[%clk
00:00:56]} Ra3 {[%clk 00:04:17]} {[%emt 00:00:01]} 34. Re2 {[%clk 00:00:28]}
{[%emt 00:00:31]} Rxd3 {[%clk 00:04:09]} {[%emt 00:00:10]} 35. Re7+ {[%clk
00:00:30]} {[%emt 00:00:01]} Kd6 {[%clk 00:04:11]} {[%emt 00:00:01]} 36. Rg7
{[%clk 00:00:31]} {[%emt 00:00:02]} Be6 {[%clk 00:03:50]} {[%emt 00:00:24]} 37.
a4 {[%clk 00:00:13]} {[%emt 00:00:22]} c5 {[%clk 00:03:51]} {[%emt 00:00:02]}
38. Rxg6 {[%clk 00:00:09]} {[%emt 00:00:07]} c4 {[%clk 00:03:45]} {[%emt
00:00:09]} 39. a5 {[%clk 00:00:10]} Ra3 {[%clk 00:03:42]} {[%emt 00:00:05]} 40.
Bd8 {[%clk 00:00:08]} {[%emt 00:00:06]} c3 {[%clk 00:03:38]} {[%emt 00:00:07]}
41. Kf2 {[%clk 00:00:08]} {[%emt 00:00:03]} Kd5 {[%clk 00:03:25]} {[%emt
00:00:16]} 42. Ke2 {[%clk 00:00:07]} {[%emt 00:00:04]} Ra2+ {[%clk 00:03:25]}
{[%emt 00:00:02]} 43. Ke1 {[%clk 00:00:09]} {[%emt 00:00:01]} Ra1+ {[%clk
00:03:25]} {[%emt 00:00:03]} 44. Ke2 {[%clk 00:00:11]} {[%emt 00:00:02]} c2
{[%clk 00:03:25]} {[%emt 00:00:02]} 0-1

[ePGN "0.1;DGT LiveChess/2.2.4"]

[Event "1st Rapid Chess Tournament Château Montaiguillon"]
[Site "Montagne - Saint Emilion, France"]
[Date "2019.09.08"]
[Round "5.1"]
[White "Moussard, Jules"]
[Black "Cornette, Matthieu"]
[Result "1-0"]
[TimeControl "12' + 3''"]
[WhiteElo "2576"]
[BlackElo "2548"]

1. f4 {[%clk 00:12:01]} {[%emt 00:00:03]} d5 {[%clk 00:12:01]} {[%emt
00:00:06]} 2. Nf3 {[%clk 00:12:02]} {[%emt 00:00:02]} Nf6 {[%clk 00:12:04]}
{[%emt 00:00:02]} 3. g3 {[%clk 00:11:52]} {[%emt 00:00:11]} e6 {[%clk
00:12:05]} {[%emt 00:00:03]} 4. b3 {[%clk 00:11:29]} {[%emt 00:00:25]} Be7
{[%clk 00:11:42]} {[%emt 00:00:26]} 5. Bb2 {[%clk 00:11:30]} {[%emt 00:00:02]}
c5 {[%clk 00:11:42]} {[%emt 00:00:03]} 6. Bg2 {[%clk 00:11:11]} {[%emt
00:00:22]} Nc6 {[%clk 00:11:43]} {[%emt 00:00:03]} 7. e3 {[%clk 00:11:06]}
{[%emt 00:00:08]} O-O {[%clk 00:11:31]} {[%emt 00:00:15]} 8. O-O {[%clk
00:11:05]} {[%emt 00:00:03]} b5 {[%clk 00:11:32]} {[%emt 00:00:02]} 9. a4
{[%clk 00:10:54]} {[%emt 00:00:15]} b4 {[%clk 00:11:33]} {[%emt 00:00:01]} 10.
Qe2 {[%clk 00:10:41]} {[%emt 00:00:16]} a5 {[%clk 00:11:27]} {[%emt 00:00:10]}
11. d3 {[%clk 00:10:42]} {[%emt 00:00:01]} Bb7 {[%clk 00:11:07]} {[%emt
00:00:23]} 12. Nbd2 {[%clk 00:10:43]} {[%emt 00:00:02]} Rc8 {[%clk 00:10:48]}
{[%emt 00:00:23]} 13. h3 {[%clk 00:10:41]} {[%emt 00:00:04]} Nd7 {[%clk
00:09:20]} {[%emt 00:01:31]} 14. e4 {[%clk 00:10:42]} {[%emt 00:00:02]} Nb6
{[%clk 00:09:05]} {[%emt 00:00:18]} 15. Rad1 {[%clk 00:10:42]} {[%emt
00:00:02]} Nd4 {[%clk 00:08:40]} {[%emt 00:00:29]} 16. Nxd4 {[%clk 00:10:37]}
{[%emt 00:00:08]} cxd4 {[%clk 00:08:41]} {[%emt 00:00:02]} 17. Nf3 {[%clk
00:10:39]} {[%emt 00:00:02]} Bc5 {[%clk 00:07:25]} {[%emt 00:01:19]} 18. Nxd4
{[%clk 00:10:10]} {[%emt 00:00:32]} dxe4 {[%clk 00:06:30]} {[%emt 00:00:58]} 19.
dxe4 {[%clk 00:10:11]} {[%emt 00:00:02]} Nd7 {[%clk 00:06:24]} {[%emt
00:00:09]} 20. Kh2 {[%clk 00:10:00]} {[%emt 00:00:13]} Qb6 {[%clk 00:06:22]}
{[%emt 00:00:05]} 21. Nb5 {[%clk 00:10:01]} {[%emt 00:00:01]} Rfd8 {[%clk
00:06:23]} {[%emt 00:00:02]} 22. Rd2 {[%clk 00:08:42]} {[%emt 00:01:23]} Nf6
{[%clk 00:05:57]} {[%emt 00:00:29]} 23. Rfd1 {[%clk 00:08:12]} {[%emt
00:00:32]} Rxd2 {[%clk 00:05:49]} {[%emt 00:00:11]} 24. Rxd2 {[%clk 00:08:10]}
{[%emt 00:00:04]} Be3 {[%clk 00:05:01]} {[%emt 00:00:52]} 25. Rd3 {[%clk
00:07:43]} {[%emt 00:00:30]} Bg1+ {[%clk 00:04:56]} {[%emt 00:00:08]} 26. Kh1
{[%clk 00:07:45]} {[%emt 00:00:01]} Bc5 {[%clk 00:04:58]} {[%emt 00:00:01]} 27.
c4 {[%clk 00:06:52]} {[%emt 00:00:56]} bxc3 {[%clk 00:03:57]} {[%emt 00:01:04]}
28. Bxc3 {[%clk 00:06:53]} {[%emt 00:00:01]} Qc6 {[%clk 00:03:27]} {[%emt
00:00:33]} 29. e5 {[%clk 00:05:49]} {[%emt 00:01:07]} Ne4 {[%clk 00:03:04]}
{[%emt 00:00:26]} 30. Kh2 {[%clk 00:05:50]} {[%emt 00:00:01]} f5 {[%clk
00:02:37]} {[%emt 00:00:30]} 31. exf6 {[%clk 00:05:39]} {[%emt 00:00:15]} gxf6
{[%clk 00:02:39]} {[%emt 00:00:01]} 32. Bxf6 {[%clk 00:05:35]} {[%emt
00:00:07]} Nd6 {[%emt 00:00:27]} 1-0